Cogmind - Beta 13 @@@ ROGUE MODE // 2024.04.11 @ 20:20:54 Player: Biasface Result: Escaped! Performance ------------- Evolutions (9) 4500 Regions Visited (12) 2400 Robots Destroyed (61) 305 Value Destroyed (1384) 1384 Prototype IDs (27) 540 Alien Tech Used (0) 0 Bonus (3310) 3310 TOTAL SCORE: 12439 Bonus ------- Follower Combat Kills 95 Aligned with FarCom 300 Win 3000 Friendly Fire -85 Cogmind --------- Core Integrity 1600/1600 Matter 29/300 Energy 234/240 System Corruption 0% Temperature Cool (12) Movement Flying (23) Location To Epsilon Eridani Parts ------- > --- POWER (2) -------- Micro Antimatter Reactor Light Quantum Reactor > --- PROPULSION (7) --- Improved VTOL Module Improved VTOL Module Xenon Bombardment Thruster Impulse Thruster Field Propulsion Array Q-thruster > --- UTILITY (14) ----- Advanced Cooling System Structural Scanner Machine Analyzer Enhanced Optical Array Advanced Transmission Jammer Advanced ECM Suite Improved Propulsion Shielding Improved Light Armor Plating Graphene Brace Improved Hacking Suite Improved Hacking Suite Improved Hacking Suite Improved Hacking Suite System Shield > --- WEAPON (2) ------- Great Axe > --- INVENTORY (5) ---- Micro Nuclear Core Light Particle Reactor Improved Phase Shifter Improved Phase Shifter Improved Concussive RPG (1) Peak State ------------ > --- POWER ------------ Micro Antimatter Reactor Light Quantum Reactor > --- PROPULSION ------- Improved VTOL Module Improved VTOL Module Xenon Bombardment Thruster Impulse Thruster Field Propulsion Array Q-thruster > --- UTILITY ---------- Advanced Cooling System Structural Scanner Machine Analyzer Enhanced Optical Array Advanced Transmission Jammer Advanced ECM Suite Advanced Reaction Control System Improved Propulsion Shielding Improved Light Armor Plating Graphene Brace Improved Hacking Suite Improved Hacking Suite Improved Hacking Suite System Shield > --- WEAPON ----------- Great Axe > --- INVENTORY -------- Micro Nuclear Core Improved Phase Shifter Improved Phase Shifter Improved Hacking Suite Improved Concussive RPG [Rating: 128] Favorites ----------- Power Ion Engine Engine Ion Engine Power Core Micro Nuclear Core Reactor Micro Antimatter Reactor Propulsion Light Treads Treads Light Treads Flight Unit Improved VTOL Module Utility Structural Scanner Device Structural Scanner Storage Large Storage Unit Processor Machine Analyzer Hackware Hacking Suite Protection Improved Light Armor Plating Weapon Improved Assault Rifle Ballistic Gun Improved Assault Rifle Launcher Grenade Launcher Slashing Weapon Great Axe Build | -11 -10 -10 -10 -9 -8 -7 -6 -5 -4 -3 -2 -1 ------- Run | Yrd Mat Min Exi Min Mat Fac Fac Fac Fac Res Res Acc Slots Evolved 18 | . . . . . 4 2 2 2 2 2 2 2 Power 1 | . . . . . . . . 1 . . . . Propulsion 5 | . . . . . 2 . 1 . 1 . 1 . Utility 12 | . . . . . 2 2 1 1 1 2 1 2 Weapon . | . . . . . . . . . . . . . Parts Attached 88 | 7 7 . 1 3 23 11 8 4 3 5 2 14 Power 11 | 1 1 . . . 1 1 2 2 . 1 . 2 Engine 3 | 1 1 . . . . 1 . . . . . . Core 5 | . . . . . 1 . 2 2 . . . . Reactor 3 | . . . . . . . . . . 1 . 2 Propulsion 25 | 2 1 . . . 13 4 1 1 1 . 1 1 Treads 14 | 2 1 . . . 11 . . . . . . . Leg . | . . . . . . . . . . . . . Wheel . | . . . . . . . . . . . . . Hover . | . . . . . . . . . . . . . Flight 11 | . . . . . 2 4 1 1 1 . 1 1 Utility 36 | 2 1 . 1 1 5 3 4 1 2 4 1 11 Device 16 | 1 . . . . 3 . . . 2 2 1 7 Storage 3 | 1 1 . 1 . . . . . . . . . Processor 4 | . . . . 1 1 1 1 . . . . . Hackware 9 | . . . . . . 2 2 1 . 1 . 3 Protection 4 | . . . . . 1 . 1 . . 1 . 1 Artifact . | . . . . . . . . . . . . . Weapon 16 | 2 4 . . 2 4 3 1 . . . . . Energy Gun . | . . . . . . . . . . . . . Energy Cannon . | . . . . . . . . . . . . . Ballistic Gun 9 | 2 4 . . 1 2 . . . . . . . Ballistic Cannon . | . . . . . . . . . . . . . Launcher 5 | . . . . 1 2 1 1 . . . . . Special Weapon . | . . . . . . . . . . . . . Impact Weapon . | . . . . . . . . . . . . . Slashing Weapon 2 | . . . . . . 2 . . . . . . Piercing Weapon . | . . . . . . . . . . . . . Special Melee Weapon . | . . . . . . . . . . . . . Unidentified Prototypes 4 | . 1 . . . 2 . 1 . . . . . Parts Lost 7 | . . . . . 2 . 2 . . 2 . 1 Power 3 | . . . . . . . 2 . . 1 . . Propulsion 1 | . . . . . 1 . . . . . . . Utility 3 | . . . . . 1 . . . . 1 . 1 Weapon . | . . . . . . . . . . . . . Highest Loss Streak 1 | . . . . . 1 . 1 . . 1 . 1 To Critical Strikes . | . . . . . . . . . . . . . Average Slot Usage (%) 97 | . 100 100 100 100 98 93 97 93 90 95 93 92 Engine 7 | . 14 14 14 14 4 7 1 . . . . . Core 2 | . . . . . 4 . 4 10 10 5 4 . Treads 19 | . 28 28 28 28 34 . . . . . . . Flight 10 | . . . . . . 29 33 28 27 28 28 24 Device 11 | . 14 14 14 7 12 7 6 5 10 17 17 23 Storage 8 | . 14 14 14 14 9 . . . . . . . Processor 6 | . . . . 6 9 14 13 11 10 9 8 8 Hackware 6 | . . . . . . 14 20 23 21 15 17 16 Protection 3 | . . . . . 5 7 5 5 5 9 8 8 Ballistic Gun 16 | . 28 28 28 27 17 . . . . . . . Slashing Weapon 1 | . . . . . . 8 6 5 5 4 4 4 Naked Turns . | . . . . . . . . . . . . . Heaviest Build 43 | 15 22 22 32 32 37 16 17 21 24 29 30 43 Greatest Support 80 | 40 40 40 40 40 80 20 26 26 33 33 41 46 Greatest Overweight (x) 6 | . . . . . . . 5 6 . 3 . . Average Overweight (x) . | . . . . . . . . . . . . . Largest Inventory Capacity 15 | 8 10 10 15 15 15 15 5 5 5 5 5 5 Average Capacity 9 | 7 9 10 10 15 15 5 5 5 5 5 5 5 Most Carried 15 | 5 10 10 10 13 15 15 5 4 5 4 3 5 Average Carried 8 | 3 8 10 9 11 13 5 4 3 4 3 3 4 Final Capacity 15 | 8 10 10 15 15 15 5 5 5 5 5 5 5 Final Carried 15 | 5 10 10 10 12 15 5 5 4 5 4 3 5 Class Distribution -------------------- 24% | Hacker-Scout 23% | Scavenger-Mutant 22% | Mutant 10% | Skirmisher 10% | Scavenger-Skirmisher 7% | Hacker-Ninja Dominant Class ---------------- Scavenger-Mutant | -10/Materials Scavenger-Mutant | -10/Mines Scavenger-Mutant | -10/Exiles Mutant | -9/Mines Skirmisher | -8/Materials Hacker-Scout | -7/Factory Hacker-Scout | -6/Factory Hacker-Scout | -5/Factory Hacker-Scout | -4/Factory Hacker-Ninja | -3/Research Hacker-Scout | -2/Research Hacker-Ninja | -1/Access Resources | -11 -10 -10 -10 -9 -8 -7 -6 -5 -4 -3 -2 -1 ----------- Run | Yrd Mat Min Exi Min Mat Fac Fac Fac Fac Res Res Acc Matter Collected 1511 | 272 358 6 . 104 553 122 36 . . . . 60 Remotely . | . . . . . . . . . . . . . Salvage Created 1819 | 51 691 . . 110 761 81 65 . . . . 60 Parts 132 | 5 53 . . 9 45 5 7 . . . . 8 Haulers Intercepted 6 | . 2 . . . 4 . . . . . . . Recyclers Shooed 2 | . . . . 1 1 . . . . . . . Parts Field Recycled . | . . . . . . . . . . . . . Retrieved Matter . | . . . . . . . . . . . . . Parts Self-Destructed . | . . . . . . . . . . . . . Prevented . | . . . . . . . . . . . . . Kills | -11 -10 -10 -10 -9 -8 -7 -6 -5 -4 -3 -2 -1 ------- Run | Yrd Mat Min Exi Min Mat Fac Fac Fac Fac Res Res Acc Combat Hostiles Destroyed 32 | . 15 . . 6 11 . . . . . . . Guns 23 | . 15 . . 2 6 . . . . . . . AOE 9 | . . . . 4 5 . . . . . . . Classes Destroyed 11 | 1 6 . . . 4 . . . . . . . Worker 2 | . . . . . 1 . . . . . . 1 Builder 3 | . 2 . . . 1 . . . . . . . Tunneler 3 | 2 . . . 1 . . . . . . . . Hauler 6 | . 2 . . . 4 . . . . . . . Mechanic 1 | . . . . . 1 . . . . . . . Operator 6 | . 1 . . . 1 2 2 . . . . . Watcher 8 | . 3 . . . 1 2 1 . . . . 1 Swarmer 10 | . 6 . . 4 . . . . . . . . Grunt 18 | . 9 . . 2 7 . . . . . . . Brawler 1 | . . . . . 1 . . . . . . . Sentry 3 | . . . . . 3 . . . . . . . Best Kill Streak 5 | 2 5 . . 4 4 1 1 . . . . 1 Combat Bots Only 4 | . 3 . . 4 3 . . . . . . . Max Kills in Single Turn 3 | 1 2 . . 3 2 1 1 . . . . 1 Gunslinging 1 | . 1 . . . . . . . . . . . Exploded 3 | . . . . 3 1 . . . . . . . Melee . | . . . . . . . . . . . . . Uniques/NPCs Destroyed . | . . . . . . . . . . . . . Combat | -11 -10 -10 -10 -9 -8 -7 -6 -5 -4 -3 -2 -1 -------- Run | Yrd Mat Min Exi Min Mat Fac Fac Fac Fac Res Res Acc Hostile Shots Fired 161 | . 58 . . 12 72 . 6 2 . 4 . 7 Missed 49 | . 18 . . 2 21 . 1 1 . 2 . 4 Damage Taken 1812 | . 405 . . 127 792 . 237 19 . 150 . 82 Core 294 | . 51 . . 43 110 . 90 . . . . . Absorbed by Shields . | . . . . . . . . . . . . . Redirected to Shielding 19 | . . . . . . . . . . . . 19 Regen/Repaired (Parts) 146 | . . . . . . . 113 33 . . . . Core Remaining (%) 93 | 100 . . . 62 80 100 89 100 100 100 100 100 Volleys Fired 113 | 4 50 1 . 8 50 . . . . . . . Largest 2 | 2 2 2 . 2 2 . . . . . . . Hottest 46 | 40 46 46 . 46 46 . . . . . . . Shots Fired 213 | 8 100 2 . 12 91 . . . . . . . Gun 200 | 8 100 2 . 8 82 . . . . . . . Cannon . | . . . . . . . . . . . . . Launcher 13 | . . . . 4 9 . . . . . . . Special . | . . . . . . . . . . . . . Kinetic 200 | 8 100 2 . 8 82 . . . . . . . Thermal . | . . . . . . . . . . . . . Explosive 13 | . . . . 4 9 . . . . . . . Electromagnetic . | . . . . . . . . . . . . . Robot Hit Streak 19 | 2 15 . . 6 19 . . . . . . . Robot Miss Streak 6 | 2 6 2 . 3 2 . . . . . . . Penetration Max . | . . . . . . . . . . . . . Secondary Targets 3 | . 2 . . . 1 . . . . . . . Max Gunslinging Chain 1 | . 1 . . . 1 . . . . . . . Shots Hit Robots 159 | 3 63 . . 7 71 8 3 . 2 . . 2 Core Hits 86 | 2 34 . . 6 37 4 1 . . . . 2 Critical Kills . | . . . . . . . . . . . . . Critical Parts Destroyed 1 | . . . . . 1 . . . . . . . Critical Strikes 1 | . . . . . 1 . . . . . . . Destroy 1 | . . . . . 1 . . . . . . . Melee Attacks 107 | . . . . . . 10 18 7 18 9 5 40 Impact . | . . . . . . . . . . . . . Slashing 107 | . . . . . . 10 18 7 18 9 5 40 Piercing . | . . . . . . . . . . . . . Sneak Attacks 4 | . . . . . . 2 1 . . . . 1 Combat Hostiles . | . . . . . . . . . . . . . Follow-up Attacks . | . . . . . . . . . . . . . Damage Inflicted 3781 | 38 807 . . 462 1581 426 226 . 94 . . 147 Guns 2023 | 38 786 . . 106 1093 . . . . . . . Cannons . | . . . . . . . . . . . . . Explosions 802 | . . . . 330 472 . . . . . . . Melee 893 | . . . . . . 426 226 . 94 . . 147 Ramming 63 | . 21 . . 26 16 . . . . . . . Kinetic 2023 | 38 786 . . 106 1093 . . . . . . . Thermal . | . . . . . . . . . . . . . Explosive 802 | . . . . 330 472 . . . . . . . Electromagnetic . | . . . . . . . . . . . . . Impact . | . . . . . . . . . . . . . Slashing 893 | . . . . . . 426 226 . 94 . . 147 Piercing . | . . . . . . . . . . . . . Highest Corruption 1 | . . . . . 1 . 1 . . . . . Average Corruption 1 | . . . . . 1 . 1 . . . . . Corruption Purged . | . . . . . . . . . . . . . Corruption Blocked . | . . . . . . . . . . . . . Effects 11 | . . . . . 8 . 3 . . . . . Message Errors 3 | . . . . . 2 . 1 . . . . . Matter Fused 3 | . . . . . 2 . 1 . . . . . Energy Discharges 1 | . . . . . 1 . . . . . . . Data Loss (minor) 2 | . . . . . 1 . 1 . . . . . Alerts 2 | . . . . . 2 . . . . . . . Overload Shots . | . . . . . . . . . . . . . Overflow Damage 205 | . . . . 10 10 49 107 . 29 . . . Projectiles . | . . . . . . . . . . . . . Explosions 20 | . . . . 10 10 . . . . . . . Melee 185 | . . . . . . 49 107 . 29 . . . Knockbacks 1 | . 1 . . . . . . . . . . . Impact 1 | . 1 . . . . . . . . . . . Kinetic . | . . . . . . . . . . . . . Secondary . | . . . . . . . . . . . . . Self-Inflicted Damage 25 | . . . . 25 . . . . . . . . Shots 1 | . . . . 1 . . . . . . . . Rammed 7 | . 3 . . 2 2 . . . . . . . Targets Rammed 8 | . 3 . . 3 2 . . . . . . . Kicked . | . . . . . . . . . . . . . Crushed 1 | . . . . 1 . . . . . . . . Highest Temperature 290 | . 20 . . 4 27 2 7 177 290 204 . . Average Temperature 51 | . 7 . . 2 10 2 2 59 51 77 . . Received Heat Transfer 663 | . 177 . . 36 432 . 9 . . . . 9 Siege Activations . | . . . . . . . . . . . . . Robots Corrupted . | . . . . . . . . . . . . . Combat Hostiles . | . . . . . . . . . . . . . Parts Fried . | . . . . . . . . . . . . . Impact Corruptions . | . . . . . . . . . . . . . Robots Melted . | . . . . . . . . . . . . . Combat Hostiles . | . . . . . . . . . . . . . Parts Melted . | . . . . . . . . . . . . . Heat Transferred . | . . . . . . . . . . . . . Parts Sabotaged . | . . . . . . . . . . . . . Parts Stolen . | . . . . . . . . . . . . . Parts Stripped . | . . . . . . . . . . . . . Power Chain Reactions . | . . . . . . . . . . . . . Alert | -11 -10 -10 -10 -9 -8 -7 -6 -5 -4 -3 -2 -1 ------- Run | Yrd Mat Min Exi Min Mat Fac Fac Fac Fac Res Res Acc Peak Influence 263 | 10 263 58 . 162 140 140 142 66 100 92 66 204 Initial 51 | . 6 . . . 1 51 9 . 7 . 51 39 Average 61 | 4 95 20 . 41 52 54 57 24 31 42 60 113 Maximum Alert Level 1 | . 1 . . . . . . . . . . 1 Low Security (%) 98 | 100 94 100 . 100 100 100 100 100 100 100 100 94 Level 1 1 | . 5 . . . . . . . . . . 5 Level 2 . | . . . . . . . . . . . . . Level 3 . | . . . . . . . . . . . . . Level 4 . | . . . . . . . . . . . . . Level 5 . | . . . . . . . . . . . . . High Security . | . . . . . . . . . . . . . Max Security . | . . . . . . . . . . . . . Squads Dispatched 31 | . 3 . . . 5 11 6 . 3 2 . 1 Investigation 15 | . 2 . . . 3 3 3 . 3 1 . . Extermination 4 | . . . . . . 2 1 . . . . 1 Reinforcement 8 | . 1 . . . 1 3 2 . . 1 . . Assault . | . . . . . . . . . . . . . Garrison 4 | . . . . . 1 3 . . . . . . Intercept . | . . . . . . . . . . . . . Searches Triggered . | . . . . . . . . . . . . . Construction Impeded . | . . . . . . . . . . . . . Haulers Reinforced 1 | . . . . . . 1 . . . . . . Active Scanning Responses . | . . . . . . . . . . . . . Cargo Convoy Interrupts . | . . . . . . . . . . . . . Stealth | -11 -10 -10 -10 -9 -8 -7 -6 -5 -4 -3 -2 -1 --------- Run | Yrd Mat Min Exi Min Mat Fac Fac Fac Fac Res Res Acc Distress Signals 11 | . 1 . . . 4 1 2 . 1 . . 2 Communications Jammed . | . . . . . . . . . . . . . Distress Signals . | . . . . . . . . . . . . . Times Spotted 83 | . 25 1 . 7 14 3 15 2 5 3 . 8 Peak Tracking Total 7 | . 3 1 . 4 3 1 7 1 2 1 . 6 Tactical Retreats 14 | . 1 . . . . . 4 1 1 1 . 6 Traps | -11 -10 -10 -10 -9 -8 -7 -6 -5 -4 -3 -2 -1 ------- Run | Yrd Mat Min Exi Min Mat Fac Fac Fac Fac Res Res Acc Traps Triggered 10 | . 2 . . . 1 . 3 . 3 . . 1 Indirectly . | . . . . . . . . . . . . . Trap Hack Attempts . | . . . . . . . . . . . . . Triggered . | . . . . . . . . . . . . . Disarmed . | . . . . . . . . . . . . . Reprogrammed . | . . . . . . . . . . . . . Reused . | . . . . . . . . . . . . . Traps Extracted . | . . . . . . . . . . . . . Installed . | . . . . . . . . . . . . . Triggered . | . . . . . . . . . . . . . Machines | -11 -10 -10 -10 -9 -8 -7 -6 -5 -4 -3 -2 -1 ---------- Run | Yrd Mat Min Exi Min Mat Fac Fac Fac Fac Res Res Acc Machines Disabled 3 | . 1 . . 1 . . . . . . . 1 Max in Single Turn 1 | . 1 . . 1 . . . . . . . 1 Garrison Access 2 | . . . . . . . 2 . . . . . Machines Repaired . | . . . . . . . . . . . . . Machines Dismantled . | . . . . . . . . . . . . . Machines Sabotaged . | . . . . . . . . . . . . . Overloaded Fab Kills . | . . . . . . . . . . . . . Hacking | -11 -10 -10 -10 -9 -8 -7 -6 -5 -4 -3 -2 -1 --------- Run | Yrd Mat Min Exi Min Mat Fac Fac Fac Fac Res Res Acc Machines Accessed 68 | . 9 . 1 . 9 8 17 7 5 4 2 6 Terminals 45 | . 7 . . . 7 6 9 3 3 4 1 5 Fabricators 2 | . . . . . . . 1 . 1 . . . Repair Stations 4 | . . . . . . 1 2 1 . . . . Recycling Units 9 | . 2 . . . . 1 1 2 1 . 1 1 Scanalyzers 2 | . . . . . 1 . 1 . . . . . Garrison Access 5 | . . . . . 1 . 3 1 . . . . Total Hacks 190 | . 19 . 1 . 23 32 47 23 16 12 4 13 Successful 98 | . 6 . 1 . 13 14 26 12 11 8 1 6 Failed 92 | . 13 . . . 10 18 21 11 5 4 3 7 Catastrophic 18 | . 4 . . . 2 2 7 . . 1 . 2 Database Lockouts . | . . . . . . . . . . . . . Manual 74 | . 16 . 1 . 12 18 14 2 1 7 . 3 Terminals 135 | . 15 . . . 14 29 26 12 13 12 2 12 Fabricators 4 | . . . . . . . 2 . 2 . . . Repair Stations 12 | . . . . . . 1 6 5 . . . . Recycling Units 16 | . 4 . . . . 2 2 4 1 . 2 1 Scanalyzers 13 | . . . . . 7 . 6 . . . . . Garrison Access 9 | . . . . . 2 . 5 2 . . . . Terminal Hacks 56 | . 4 . 1 . 7 11 8 5 8 7 . 5 Record 15 | . . . . . 1 5 2 2 2 1 . 2 Robot Analysis 4 | . 3 . . . 1 . . . . . . . Open Door 1 | . . . . . . . . . . . . 1 Level Access Points 5 | . . . . . . 1 1 1 1 1 . . Branch Access Points 1 | . . . . . . . . . . . . 1 Emergency Access Points 1 | . . . . . . . . . 1 . . . Alert Level 5 | . . . . . 1 . 2 1 . 1 . . Unreport Threat 3 | . . . . . . 1 1 . 1 . . . Locate Traps 5 | . . . . . 1 1 1 . 1 1 . . Transport Status 1 | . . . . . 1 . . . . . . . Extermination Status 2 | . . . . . . . . . . 2 . . Recall Extermination 2 | . . . . . . 1 1 . . . . . Recall Reinforcements 1 | . . . . . . . . . 1 . . . Hauler Manifests 4 | . 1 . . . 2 1 . . . . . . Zone Layout 5 | . . . . . . 1 . 1 1 1 . 1 Derelict Proto ID Bank 1 | . . . 1 . . . . . . . . . Fabricator Hacks 4 | . . . . . . . 2 . 2 . . . Load Schematic 2 | . . . . . . . 1 . 1 . . . Build 2 | . . . . . . . 1 . 1 . . . Repair Station Hacks 10 | . . . . . . . 6 4 . . . . Scan Component 5 | . . . . . . . 3 2 . . . . Repair 5 | . . . . . . . 3 2 . . . . Recycling Unit Hacks 11 | . 2 . . . . 1 2 3 1 . 1 1 Retrieve Components 11 | . 2 . . . . 1 2 3 1 . 1 1 Scanalyzer 12 | . . . . . 6 . 6 . . . . . Insert Component 6 | . . . . . 3 . 3 . . . . . Analyze 6 | . . . . . 3 . 3 . . . . . Garrison Access Hacks 2 | . . . . . . . 2 . . . . . Seal Access 2 | . . . . . . . 2 . . . . . Unauthorized Hacks 3 | . . . . . . 2 . . . 1 . . Terminals 3 | . . . . . . 2 . . . 1 . . Botnet 3 | . . . . . . 2 . . . 1 . . Fabricators . | . . . . . . . . . . . . . Repair Stations . | . . . . . . . . . . . . . Recycling Units . | . . . . . . . . . . . . . Scanalyzers . | . . . . . . . . . . . . . Garrison Access . | . . . . . . . . . . . . . Data Cores Recovered 2 | . . . . . . 1 1 . . . . . Used 2 | . . . . . . 1 1 . . . . . Hacking Detections 54 | . 9 . . . 9 6 11 5 4 2 2 6 Full Trace Events 12 | . . . . . 3 3 3 . 2 1 . . Feedback Events 1 | . . . . . . . . . . 1 . . Hackware Fried 1 | . . . . . . . . . . 1 . . Feedback Blocked 1 | . . . . . . 1 . . . . . . Robot Schematics Acquired . | . . . . . . . . . . . . . Robots Built . | . . . . . . . . . . . . . Authchips . | . . . . . . . . . . . . . Time . | . . . . . . . . . . . . . Total Robot Build Rating . | . . . . . . . . . . . . . Part Schematics Acquired 6 | . . . . . 3 . 3 . . . . . Parts Built 3 | . . . . . . . 2 . 1 . . . Authchips . | . . . . . . . . . . . . . Time 189 | . . . . . . . 73 . 116 . . . Total Part Build Rating 9 | . . . . . . . 6 . 3 . . . Parts Repaired 5 | . . . . . . . 3 2 . . . . Time 133 | . . . . . . . 89 44 . . . . Parts Recycled . | . . . . . . . . . . . . . Recycled Matter . | . . . . . . . . . . . . . Retrieved Matter . | . . . . . . . . . . . . . Retrieved Components 22 | . 11 . . . . 3 2 1 3 . . 2 Parts Scanalyzed 6 | . . . . . 3 . 3 . . . . . Part Schematics Acquired 6 | . . . . . 3 . 3 . . . . . Parts Damaged . | . . . . . . . . . . . . . Bothacking | -11 -10 -10 -10 -9 -8 -7 -6 -5 -4 -3 -2 -1 ------------ Run | Yrd Mat Min Exi Min Mat Fac Fac Fac Fac Res Res Acc Used RIF Installer . | . . . . . . . . . . . . . Robots Hacked . | . . . . . . . . . . . . . Non-combat . | . . . . . . . . . . . . . Combat . | . . . . . . . . . . . . . Robot Hacks Applied . | . . . . . . . . . . . . . Relay Couplers Released . | . . . . . . . . . . . . . Fabnet Peak Effective % . | . . . . . . . . . . . . . Robots Rewired . | . . . . . . . . . . . . . Allies Hacked . | . . . . . . . . . . . . . Hacks Repelled . | . . . . . . . . . . . . . Allies | -11 -10 -10 -10 -9 -8 -7 -6 -5 -4 -3 -2 -1 -------- Run | Yrd Mat Min Exi Min Mat Fac Fac Fac Fac Res Res Acc Total Allies 3 | . . 3 . . . . . . . . . . Largest Group 3 | . . 3 2 2 . . . . . . . . Highest-Rated Group 40 | . . 40 24 24 . . . . . . . . Highest-Rated Ally 16 | . . 16 16 16 . . . . . . . . Total Orders . | . . . . . . . . . . . . . Ally Attacks 36 | . . 21 . 15 . . . . . . . . Total Damage 289 | . . 165 . 124 . . . . . . . . Kills 5 | . . 4 . 1 . . . . . . . . Allies Corrupted . | . . . . . . . . . . . . . Allies Melted . | . . . . . . . . . . . . . Intel | -11 -10 -10 -10 -9 -8 -7 -6 -5 -4 -3 -2 -1 ------- Run | Yrd Mat Min Exi Min Mat Fac Fac Fac Fac Res Res Acc Robot Analysis Total 4 | . 3 . . . 1 . . . . . . . Derelict Logs Recovered 1 | . . . . 1 . . . . . . . . Drone Launches . | . . . . . . . . . . . . . Drone Recoveries . | . . . . . . . . . . . . . Exploration | -11 -10 -10 -10 -9 -8 -7 -6 -5 -4 -3 -2 -1 ------------- Run | Yrd Mat Min Exi Min Mat Fac Fac Fac Fac Res Res Acc Turns Passed 8651 | 133 1954 382 559 921 1754 527 809 444 400 186 60 522 Spaces Moved 10126 | 68 1069 220 348 553 899 1130 1613 995 1139 603 219 1270 Core 30 | 2 . . . . . . 10 18 . . . . Treads 3155 | 66 1069 220 348 553 899 . . . . . . . Legs . | . . . . . . . . . . . . . Wheels . | . . . . . . . . . . . . . Hover . | . . . . . . . . . . . . . Flight 6941 | . . . . . . 1130 1603 977 1139 603 219 1270 Fastest Speed 19 | 50 160 160 160 160 160 26 24 24 21 21 19 19 Average Speed 67 | 156 160 160 160 160 160 26 25 29 23 21 19 22 Slowest Speed 350 | 160 160 160 160 160 162 26 300 350 24 280 21 23 Overloaded Moves . | . . . . . . . . . . . . . Propulsion Burnouts . | . . . . . . . . . . . . . Robots Hopped 29 | . . . . . . 7 6 5 6 . 2 3 Cave-ins Triggered . | . . . . . . . . . . . . . Exploration Rate (%) 43 | 4 96 24 69 94 84 33 45 24 30 22 7 31 Regions Visited 12 Branch Regions 3 Pre-discovered Areas 1 | . . . . 1 . . . . . . . . Known Exits Taken 5 | . . . . . . 1 1 1 1 1 . . Unknown Exits Taken 7 | 1 1 1 1 1 1 . . . . . 1 . Scrap Searched 4 | . . 1 . 3 . . . . . . . . Spaces Dug 73 | . . . . . . 1 7 7 10 9 5 34 Terrain Destroyed 137 | . . . . 18 46 1 7 7 10 9 5 34 Melee 73 | . . . . . . 1 7 7 10 9 5 34 Projectile . | . . . . . . . . . . . . . AOE 64 | . . . . 18 46 . . . . . . . Terrain Rammed . | . . . . . . . . . . . . . Walls Destroyed . | . . . . . . . . . . . . . Machines Disabled . | . . . . . . . . . . . . . Actions | -11 -10 -10 -10 -9 -8 -7 -6 -5 -4 -3 -2 -1 --------- Run | Yrd Mat Min Exi Min Mat Fac Fac Fac Fac Res Res Acc Total 11560 | 84 1219 248 351 575 1119 1346 1968 1122 1236 642 223 1427 Wait 1001 | . 68 28 . 3 107 180 325 121 54 23 . 92 Move 10059 | 67 1068 219 347 552 898 1118 1600 984 1127 602 214 1263 Hop 25 | . . . . . . 4 6 5 5 . 2 3 Pick Up 75 | 6 11 . 1 4 20 8 7 1 5 3 . 9 Fast Attach 21 | 6 2 . . . 3 2 1 2 1 . 1 3 Attach 30 | 1 . . . . 5 7 5 2 1 4 1 4 Detach 3 | . . . . . . 2 1 . . . . . Swap 38 | . 5 . 1 3 15 2 3 . 1 1 . 7 Drop 60 | . 12 . 2 2 19 13 2 . 4 . . 6 Fire 113 | 4 50 1 . 8 50 . . . . . . . Melee 107 | . . . . . . 10 18 7 18 9 5 40 Ram . | . . . . . . . . . . . . . Kick . | . . . . . . . . . . . . . Crush 8 | . 3 . . 3 2 . . . . . . . Escape Stasis 20 | . . . . . . . . . 20 . . . Rewire . | . . . . . . . . . . . . . Trap . | . . . . . . . . . . . . . Miscellaneous . | . . . . . . . . . . . . . Route ------- -11/Scrapyard -10/Materials (discovered 5 exits: [*Mat x3] / [*Min x2]) -10/Mines -10/Exiles (discovered 2 exits: [*Min x2]) -9/Mines -8/Materials (discovered 2 exits: *Fac x2) -7/Factory (discovered 4 exits: *Fac x4) -6/Factory (discovered 4 exits: *Fac x4) -5/Factory (discovered 4 exits: *Fac x4) -4/Factory (discovered 4 exits: *Res x4) -3/Research (discovered 4 exits: *Res x3 / [Tes]) -2/Research -1/Access (discovered 2 exits: [*Sur] / Com) To Epsilon Eridani History --------- Turn | Location | Event 16 | -11/Scrapyard | Discovered new exit (range 16) 134 | -11/Scrapyard | Entered Materials 320 | -10/Materials | Build established: Mutant 853 | -10/Materials | Discovered new exit (range 5) 1308 | -10/Materials | Build established: Scavenger-Mutant 1321 | -10/Materials | Discovered new exit (range 16) 1406 | -10/Materials | Discovered new exit (range 8) 1561 | -10/Materials | Discovered new exit (range 12) 1729 | -10/Materials | Discovered new exit (range 5) 2088 | -10/Materials | Entered Mines 2092 | -10/Mines | Assisted by bots powering up and referring to "LRC-V3" 2184 | -10/Mines | Deemed a non-threat by the Exiles lab entrance 2186 | -10/Mines | Discovered new exit (range 5) 2304 | -10/Mines | Assembled infested the area 2470 | -10/Mines | Entered Exiles 2470 | -10/Exiles | Accompanied by 2 allies 2496 | -10/Exiles | Discovered new exit (range 14) 2515 | -10/Exiles | Met 8R-AWN 2542 | -10/Exiles | Met EX-HEX 2594 | -10/Exiles | Met EX-BIN 2624 | -10/Exiles | Aligned with FarCom system 2626 | -10/Exiles | Given EX-Vault access code 2674 | -10/Exiles | Opened EX-Vault 2698 | -10/Exiles | Found Chronowheel 2730 | -10/Exiles | Warned to stay clear of 0b10 Research branches 2778 | -10/Exiles | Met EX-DEC 3000 | -10/Exiles | Discovered new exit (range 14) 3029 | -10/Exiles | Left Exiles lab with Chronowheel 3029 | -10/Exiles | Entered Mines 3029 | -9/Mines | Accompanied by 2 allies 3060 | -9/Mines | Learned location of Storage (-8) 3265 | -9/Mines | Build established: Mutant 3401 | -9/Mines | Discovered new exit (range 15) 3950 | -9/Mines | Entered Materials 3950 | -8/Materials | Evolved 4 slots: Propulsion x2, Utility x2 4120 | -8/Materials | Met 7R-MNS 4284 | -8/Materials | Build established: Skirmisher 4430 | -8/Materials | Discovered new exit (range 10) 5278 | -8/Materials | Discovered new exit (range 10) 5443 | -8/Materials | Build established: Scavenger-Skirmisher 5535 | -8/Materials | Garrison activated, responded to threat 5704 | -8/Materials | Entered Factory 5704 | -7/Factory | Evolved 2 slots: Utility x2 5705 | -7/Factory | Caught up to 7R-MNS 5919 | -7/Factory | Garrison activated, responded to threat 6003 | -7/Factory | Identified exit to Factory 6014 | -7/Factory | Build established: Hacker-Scout 6231 | -7/Factory | Entered another Factory area 6231 | -6/Factory | Evolved 2 slots: Propulsion x1, Utility x1 6522 | -6/Factory | Repaired Hacking Suite 6562 | -6/Factory | Repaired Imp. Light Armor Plating 6660 | -6/Factory | Fabricated Lgt. Deuterium Engine? 6822 | -6/Factory | Repaired Grenade Launcher 7024 | -6/Factory | Identified exit to Factory 7040 | -6/Factory | Entered another Factory area 7040 | -5/Factory | Evolved 2 slots: Power x1, Utility x1 7054 | -5/Factory | Spotted B-75 Beast 7106 | -5/Factory | Repaired Mic. Nuclear Core 7130 | -5/Factory | Repaired Xenon Bombardment Thruster 7429 | -5/Factory | Identified exit to Factory 7484 | -5/Factory | Entered another Factory area 7484 | -4/Factory | Evolved 2 slots: Propulsion x1, Utility x1 7587 | -4/Factory | Identified exit to Research 7625 | -4/Factory | Fabricated Imp. VTOL Module? 7863 | -4/Factory | Spotted B-86 Titan 7884 | -4/Factory | Entered Research 7884 | -3/Research | Evolved 2 slots: Utility x2 7898 | -3/Research | System Shield fried by hacking feedback 7978 | -3/Research | Identified exit to Research 7997 | -3/Research | Spotted B-86 Titan 8060 | -3/Research | Discovered new exit (range 15) 8070 | -3/Research | Entered another Research area 8070 | -2/Research | Evolved 2 slots: Propulsion x1, Utility x1 8108 | -2/Research | Discovered new exit (range 8) 8130 | -2/Research | Entered Access 8130 | -1/Access | Evolved 2 slots: Utility x2 8209 | -1/Access | Spotted B-99 Colossus 8262 | -1/Access | Spotted B-99 Colossus 8315 | -1/Access | Identified exit to Command 8422 | -1/Access | Build established: Hacker-Ninja 8600 | -1/Access | Spotted B-99 Colossus 8649 | -1/Access | Discovered new exit (range 4) 8652 | *** | Escaped! Last Messages --------------- 08581_ K-01 Serf destroyed. 08584_ Acquired 23 matter. 08590_ Slug penetrates Wall. 08591_ U-05 Engineer builds a Wall. 08603_ >> Machine Analyzer network decryption results: 08603_ Terminal x1 08627_ >> Machine Analyzer network decryption results: 08627_ Terminal x3 08630_ ALERT: Rogue bot located, Programmers report to Access Zone 5N. 08634_ Connecting with Terminal... >>Open(Door) Sealed Barrier opened. 08639_ ALERT: Security rotation in progress. 08643_ Connecting with Terminal... 08649_ Main Access Shell breached. 08649_ EXIT=FOUND [Achievement: Epsilon Run] Map ----- +----------------------------------------------------+ | ???????????"""??""???????????????????????????????? | | ????????????"???""???????????????????????????????? | | ????????????????T"???????????????????????????????? | | ????????????????""???????????????????????????????? | | ???????????"????""???????????????????????????????? | | ??????????"""???""???????????????????????????????? | | ???????????"""??""???????????????????????????????? | | ????????????"????"???????????????????????????????? | | ?????????????????????????????????????????????????? | | ##??#### ################ ???????? | | # ##########+####################+#####???????? | | + "T ##???????? | | # "" ##???????? | | # ###+###+######## ""##?????? ##???????? | | ##??## #### ""##????????????????? | | ????## #### ""##????????????????? | | ????## #### T##????????????????? | | ????## #### ""##????????????????? | | ????## #### ""###???????????????? | | ????## #### ""###???????????????? | | ????## ### ##???????????????? | | ????## ! #### ###???????????????? | | ????## #### ###???????????????? | | ????## #### """ "" ##????????????????? | | ????## #### " " ##????????????????? | | ????## #### " @" " ##????????????????? | | ????## #### " "" " ##????????????????? | | ????#########+####### " " ##????????????????? | | ????######### ####### """""" ##????????????????? | | ????######### ####### ##????????????????? | | ????#########+#######""""""""""##????????????????? | | ????## ###"????????"##????????????????? | | ????## ##??????????"##????????????????? | | ????## """""" ##????????"""##????????????????? | | ????## """""" ##??????? ##????????????????? | | ????## """""" ##??BB??? BB ##????????????????? | | ????## """""" ##??BB?? BB ##????????????????? | | ????## """""" ##?????? ##????????????????? | | ????## ##?????? ##????????????????? | | ????## ##????? ##???????"????????? | | ????## ! ##????? ?????????"""???????? | | ????## ##???? ##????????"""????????? | | ### ###### ##?????????"?????????? | | ############+########### ##???????????????????? | | ##???????????????????? | | ##???????????????????? | | ##???????????????????? | | ##???????????????????? | | ############### ########???????????????????? | | ############### ########???????????????????? | +----------------------------------------------------+ Best States ------------- Heat Dissipation 83 Energy Generation 39 Energy Capacity 250 Matter Stores 300 Matter Capacity 300 Sight Range 22 Terrain Scan Density 10 Jamming Range 16 Armor Coverage 150 Propulsion Shielding 66 Phase Shifting 10 Evasion (%) 78 Recoil Reduction 4 Offensive Hacking 48 Defensive Hacking 10 Item Schematics ----------------- Imp. VTOL Module | -8/Materials | Scanalyzed Hacking Suite | -8/Materials | Scanalyzed Lgt. Deuterium Engine | -8/Materials | Scanalyzed Imp. Reaction Control System | -6/Factory | Scanalyzed Mic. Nuclear Core | -6/Factory | Scanalyzed Imp. Propulsion Shielding | -6/Factory | Scanalyzed Robot Schematics ------------------ None Fabricated ------------ Lgt. Deuterium Engine | x2 | -6/Factory Imp. VTOL Module | x1 | -4/Factory Alien Tech Used ----------------- None Achievements -------------- Cya! Denied? Dynamic Key Epsilon Run GoHome() Just What I Needed Origins Part-time Excavator Party Time Respectable Loadout Challenges ------------ None Game ------ Seed CoilAblativeRifle Manual? 0 Play Time 01:41:25 Cumulative 8.7 hours Start 2024.04.11 @ 18:38:30 End 2024.04.11 @ 20:20:54 Sessions 1 Manual Loads 0 Difficulty Rogue Special Mode None Game No. 9 Rogue 9 Adventurer 0 Explorer 0 Win Type 0 Total 1 Types 1/0/0/0/0/0/0/0/0 Lore% 18 Gallery% 15 Achievement% 19 Wizard Run 0 Options --------- Layout 1 ASCII 0 Keyboard 0 Movement Arrows Keybinds 0 Fullscreen 1 Font 24/Smallcaps Map View 50x35 Zoom Use 0% Tactical HUD 1 Map Filters NONE Filters NONE Steam 1 RUN: 40fabdb9-f1ab-4098-97d8-2d67140f3b93